bitfinex/quotes_BTCUSD_20250916
["timestamp","ask_amount","ask_price","bid_price","bid_amount"]
[1758042045691,0.00076039,116310.0,116300.0,0.75847048]
[1758042045949,0.00285039,116310.0,116300.0,0.75847048]
[1758042046390,0.00285039,116310.0,116300.0,1.19592797]
[1758042046605,0.00285039,116310.0,116300.0,1.46528797]
[1758042046830,0.00285039,116310.0,116300.0,1.46735797]
[1758042047051,0.00285039,116310.0,116300.0,1.05798238]
[1758042047273,0.00285039,116310.0,116300.0,1.46528797]
[1758042047508,0.02978039,116310.0,116300.0,1.46528797]
[1758042047734,0.02978039,116310.0,116300.0,1.46538797]
[1758042047948,0.02978039,116310.0,116300.0,1.05808238]
[1758042049264,0.02978039,116310.0,116300.0,0.75857048]
[1758042049477,0.02978039,116310.0,116300.0,1.15857048]
[1758042049906,0.02978039,116310.0,116300.0,0.75857048]
[1758042052276,0.55477728,116310.0,116300.0,0.58660144]
[1758042052504,0.63737728,116310.0,116300.0,0.58660144]
[1758042052756,1.26267883,116310.0,116300.0,0.58650144]
[1758042052968,1.26281883,116310.0,116300.0,0.58650144]
[1758042053184,0.9097762,116310.0,116300.0,0.58650144]
[1758042053400,1.34932028,116310.0,116300.0,0.58650144]
[1758042054040,1.34928028,116310.0,116300.0,0.58650144]
[1758042054705,1.34928028,116310.0,116300.0,0.49999999]
[1758042054918,1.48296291,116310.0,116300.0,0.49999999]
[1758042055129,1.12992028,116310.0,116300.0,0.49999999]
[1758042055356,1.75232291,116310.0,116300.0,0.49999999]
[1758042055568,1.39928028,116310.0,116300.0,0.49999999]
[1758042055969,1.34928028,116310.0,116300.0,0.49999999]
[1758042056121,1.39928028,116310.0,116300.0,0.49999999]
[1758042056339,1.04623765,116310.0,116300.0,0.49999999]
[1758042056581,1.04619765,116310.0,116300.0,0.49999999]
[1758042056778,1.39924028,116310.0,116300.0,0.49999999]
[1758042057856,1.75228291,116310.0,116300.0,0.49999999]
[1758042058095,1.12992028,116310.0,116300.0,0.49999999]
[1758042058324,1.39928028,116310.0,116300.0,0.49999999]
[1758042058525,1.04341883,116310.0,116300.0,0.49999999]
[1758042058993,1.26273883,116310.0,116300.0,0.49999999]
[1758042059207,1.31273883,116310.0,116300.0,0.49999999]
[1758042059575,1.04341883,116310.0,116300.0,0.49999999]
[1758042059764,1.31277883,116310.0,116300.0,0.49999999]
[1758042059961,1.39928028,116310.0,116300.0,0.49999999]
[1758042060378,1.12992028,116310.0,116300.0,0.49999999]
[1758042060578,1.39924028,116310.0,116300.0,0.49999999]
[1758042060783,1.12992028,116310.0,116300.0,0.49999999]
[1758042060991,1.39924028,116310.0,116300.0,0.49999999]
[1758042062009,1.75228291,116310.0,116300.0,0.49999999]
[1758042062222,0.49945483,116290.0,116270.0,0.0001]
[1758042062431,0.51201341,116270.0,116250.0,0.06930116]
[1758042062633,0.55390084,116260.0,116250.0,0.15627229]
[1758042062844,0.83939872,116260.0,116250.0,0.15627229]
[1758042063258,0.83939872,116260.0,116250.0,0.08707113]
[1758042063532,0.83939872,116260.0,116250.0,0.25911414]
[1758042063861,0.31428788,116260.0,116250.0,0.25911414]
[1758042064067,0.04496788,116260.0,116250.0,0.25911414]
[1758042064481,0.66737051,116260.0,116250.0,0.25911414]
[1758042064690,0.83939872,116260.0,116250.0,0.25911414]
[1758042064894,0.39801051,116260.0,116250.0,0.25911414]
[1758042065102,0.01603788,116260.0,116250.0,0.69753866]
[1758042065336,0.01603788,116260.0,116250.0,1.06074866]
[1758042065512,0.01603788,116260.0,116250.0,1.33014866]
[1758042065717,0.10942,116280.0,116270.0,0.2220134]
[1758042065916,0.12545062,116280.0,116270.0,0.30851485]
[1758042066124,0.12759062,116280.0,116270.0,0.30851485]
[1758042066326,0.39703062,116280.0,116270.0,0.30851485]
[1758042066522,0.39379062,116280.0,116270.0,0.71068485]
[1758042066919,0.39703062,116280.0,116270.0,0.70851485]
[1758042067733,0.31119062,116280.0,116270.0,0.70851485]
[1758042067946,0.04175062,116280.0,116270.0,0.71068485]
[1758042068157,0.31115062,116280.0,116270.0,0.71068485]
[1758042068587,0.26946,116290.0,116280.0,0.17199862]
[1758042068808,0.31121392,116290.0,116280.0,0.25850007]
[1758042069030,0.01613392,116290.0,116280.0,0.66371269]
[1758042069280,0.01613392,116290.0,116280.0,0.66381269]
[1758042069478,0.14553354,116290.0,116280.0,0.66381269]
[1758042069693,0.01817354,116290.0,116280.0,0.69396459]
[1758042069890,0.26449354,116290.0,116280.0,0.69396459]
[1758042070132,0.28807354,116290.0,116280.0,0.74092196]
[1758042070344,0.29131354,116290.0,116280.0,0.73875196]
[1758042070735,0.29131404,116290.0,116280.0,0.73875196]
[1758042071616,0.64435667,116290.0,116280.0,0.30860006]
[1758042071830,0.29131404,116290.0,116280.0,0.30860006]
[1758042072053,0.29131404,116290.0,116280.0,0.25860007]
[1758042072484,0.29131404,116290.0,116280.0,0.30860006]
[1758042073872,0.31443404,116290.0,116280.0,0.30860006]
[1758042075265,0.04499404,116290.0,116280.0,0.30860006]
[1758042075789,0.01603404,116290.0,116280.0,1.13793575]
[1758042076016,0.0001,116300.0,116290.0,0.22198382]
[1758042076233,0.27040039,116310.0,116300.0,0.20212094]
[1758042076450,0.29722039,116310.0,116300.0,0.30847048]
[1758042076673,0.00290039,116310.0,116300.0,0.69383501]
[1758042076888,0.27040039,116310.0,116300.0,0.69383501]
[1758042077101,0.27040039,116310.0,116300.0,0.72010501]
[1758042077772,0.00076039,116310.0,116300.0,0.72010501]
[1758042078822,0.00290039,116310.0,116300.0,0.69383501]
[1758042079037,0.00614039,116310.0,116300.0,0.30847048]
[1758042079255,0.02972039,116310.0,116300.0,0.30847048]
[1758042079907,0.02972039,116310.0,116300.0,0.70847048]
[1758042080675,0.00076039,116310.0,116300.0,1.09689501]
[1758042080881,0.00290039,116310.0,116300.0,1.36383501]
[1758042081093,0.02648039,116310.0,116300.0,1.36166501]
[1758042081313,0.02648039,116310.0,116300.0,1.36176501]
[1758042081528,0.02648039,116310.0,116300.0,1.09176501]
[1758042081953,0.02648039,116310.0,116300.0,1.23324407]
[1758042082187,0.02648039,116310.0,116300.0,1.23541407]
[1758042082713,0.02648039,116310.0,116300.0,1.23324407]
[1758042082945,0.02648039,116310.0,116300.0,0.73872238]
[1758042083195,0.02648039,116310.0,116300.0,1.23324407]
[1758042083425,0.02976039,116310.0,116300.0,1.23324407]
[1758042083882,0.02976039,116310.0,116300.0,0.73872238]
[1758042084822,0.02652039,116310.0,116300.0,0.73872238]
[1758042085655,0.02652039,116310.0,116300.0,0.74089238]
[1758042086287,0.02976039,116310.0,116300.0,0.70857048]
[1758042088072,0.02976039,116310.0,116300.0,1.20857048]
[1758042089297,0.02976039,116310.0,116300.0,1.15857049]
[1758042089671,0.29952039,116310.0,116300.0,1.20857048]
[1758042089845,1.10353265,116310.0,116300.0,0.58660145]
[1758042090083,0.38212039,116310.0,116300.0,0.58660145]
[1758042090294,0.11236039,116310.0,116300.0,0.75857049]
[1758042090509,0.38224039,116310.0,116300.0,0.58660145]
[1758042090743,0.55419465,116310.0,116300.0,0.58660145]
[1758042091893,0.55419465,116310.0,116300.0,0.75857049]
[1758042092285,0.38234039,116310.0,116300.0,0.75857049]
[1758042092456,0.55429465,116310.0,116300.0,0.75857049]
[1758042092700,0.38234039,116310.0,116300.0,0.75857049]
[1758042092910,0.55429465,116310.0,116300.0,0.75857049]
[1758042093293,0.38234039,116310.0,116300.0,0.75857049]
[1758042093544,0.38234039,116310.0,116300.0,0.5001]
[1758042093545,1.11205086,116310.0,116300.0,0.5001]
[1758042093933,0.28441465,116310.0,116300.0,0.58660145]
[1758042094133,0.55453465,116310.0,116300.0,0.58660145]
[1758042094371,0.57060822,116310.0,116300.0,0.58660145]
[1758042094770,0.55453465,116310.0,116300.0,0.58660145]
[1758042095412,0.91061449,116310.0,116300.0,0.58660145]
[1758042095681,0.64049449,116310.0,116300.0,0.75847049]
[1758042095865,0.89449465,116310.0,116300.0,0.75847049]
[1758042097801,0.62441465,116310.0,116300.0,0.75847049]
[1758042098020,0.00304039,116310.0,116300.0,1.25501218]
[1758042098260,0.00090039,116310.0,116300.0,1.25501218]
[1758042098499,0.27098039,116310.0,116300.0,0.78121218]
[1758042098715,0.00090039,116310.0,116300.0,0.86136407]
[1758042098927,0.27094039,116310.0,116300.0,0.86136407]
[1758042099796,0.00090039,116310.0,116300.0,0.86136407]
[1758042101099,0.00090039,116310.0,116300.0,1.26136407]
[1758042101899,0.00090039,116310.0,116300.0,1.76136407]
[1758042102307,0.00090039,116310.0,116300.0,1.84136407]
[1758042102763,1e-08,116310.0,116300.0,2.26396407]
[1758042102976,1e-08,116310.0,116300.0,1.76396407]
[1758042103457,1e-08,116310.0,116300.0,1.76406407]
[1758042103678,1e-08,116310.0,116300.0,2.03414407]
[1758042104108,1e-08,116310.0,116300.0,1.81406407]
[1758042104319,1e-08,116310.0,116300.0,2.0427951]
[1758042104535,1e-08,116310.0,116300.0,1.7727551]
[1758042104750,0.07806196,116320.0,116310.0,1.21647593]
[1758042104985,0.07806196,116320.0,116310.0,1.31147738]
[1758042105206,0.07806196,116320.0,116310.0,1.33969738]
[1758042105428,0.07806196,116320.0,116310.0,1.60995738]
[1758042105649,0.07796196,116320.0,116310.0,2.00995738]
[1758042106118,0.07796196,116320.0,116310.0,2.07573099]
[1758042107111,0.07796196,116320.0,116310.0,1.5812093]
[1758042108550,0.07796196,116320.0,116310.0,2.07573099]
[1758042108933,0.07796196,116320.0,116310.0,2.07557099]
[1758042109294,0.07796196,116320.0,116310.0,1.3110493]
[1758042109819,0.10315196,116320.0,116310.0,1.5849612]
[1758042110033,0.07991196,116320.0,116310.0,1.5849612]
[1758042110238,0.07796196,116320.0,116310.0,1.6111612]
[1758042110449,0.07991196,116320.0,116310.0,1.3150012]
[1758042110662,0.07991196,116320.0,116310.0,1.5850012]
[1758042110871,0.07796196,116320.0,116310.0,1.6112012]
[1758042111415,0.07796196,116320.0,116310.0,1.5810493]
[1758042111930,0.07991196,116320.0,116310.0,1.2848493]
[1758042112151,0.10636196,116320.0,116310.0,1.5527493]
[1758042112573,0.10315196,116320.0,116310.0,1.2848493]
[1758042112999,0.10636196,116320.0,116310.0,1.5527093]
[1758042115550,0.07796196,116320.0,116310.0,1.5577093]
[1758042115731,0.07796196,116320.0,116310.0,1.5810493]
[1758042117061,0.08005196,116320.0,116310.0,1.2848293]
[1758042117280,0.10396196,116320.0,116310.0,1.50266931]
[1758042117453,0.10396196,116320.0,116310.0,1.5546693]
[1758042118481,0.10396196,116320.0,116310.0,1.5526693]
[1758042118630,0.10396196,116320.0,116310.0,1.2828293]
[1758042118837,0.10719196,116320.0,116310.0,1.2743293]
[1758042119043,0.10396196,116320.0,116310.0,1.2743293]
[1758042119870,0.10396196,116320.0,116310.0,1.2763293]
[1758042120308,0.10396196,116320.0,116310.0,1.5460893]
[1758042120747,0.10396196,116320.0,116310.0,1.5460493]
[1758042121418,0.07796196,116320.0,116310.0,1.5490493]
[1758042121620,0.07796196,116320.0,116310.0,1.5723893]
[1758042122195,0.07796196,116320.0,116310.0,2.06691099]
[1758042122786,0.07796196,116320.0,116310.0,1.5723893]
[1758042123375,0.07796196,116320.0,116310.0,1.5724693]
[1758042123595,0.07796196,116320.0,116310.0,1.5725093]
[1758042124818,0.07796196,116320.0,116310.0,1.6026612]
[1758042127278,0.07796196,116320.0,116310.0,2.09718289]
[1758042127863,0.07796196,116320.0,116310.0,1.6026612]
[1758042128715,0.07796196,116320.0,116310.0,2.09718289]
[1758042130795,0.07796196,116320.0,116310.0,1.6026612]
[1758042131024,0.0001,116340.0,116330.0,0.08015189]
[1758042131234,0.00024082,116340.0,116330.0,1.12871218]
[1758042131459,0.00024082,116340.0,116330.0,0.87097972]
[1758042131671,0.00024082,116340.0,116330.0,0.77645803]
[1758042131887,0.00024082,116340.0,116330.0,1.03783803]
[1758042132102,0.00014082,116340.0,116330.0,1.03783803]
[1758042133454,0.00014082,116340.0,116330.0,1.03787803]
[1758042134462,0.00014082,116340.0,116330.0,1.53239972]
[1758042134771,1e-08,116340.0,116330.0,1.03787803]
[1758042134972,1e-08,116340.0,116330.0,1.54089972]
[1758042136367,1e-08,116340.0,116330.0,1.54081972]
[1758042136996,0.08013764,116350.0,116340.0,1.24658348]
[1758042137203,0.01200069,116360.0,116350.0,0.22189513]
[1758042137368,0.01200069,116360.0,116350.0,0.31055658]
[1758042137572,0.01402069,116360.0,116350.0,0.33767658]
[1758042137779,0.04051069,116360.0,116350.0,0.70839658]
[1758042138478,0.53503238,116360.0,116350.0,0.70839658]
[1758042138892,0.04051069,116360.0,116350.0,0.77349593]
[1758042139325,0.04051069,116360.0,116350.0,0.77359593]
[1758042139727,0.01200069,116360.0,116350.0,0.77882593]
[1758042139939,0.01200069,116360.0,116350.0,0.80287593]
[1758042140383,0.04051069,116360.0,116350.0,0.77359593]
[1758042140776,0.03753069,116360.0,116350.0,0.77359593]
[1758042141228,0.04051069,116360.0,116350.0,0.77359593]
[1758042141831,0.03753069,116360.0,116350.0,0.77575593]
[1758042142063,0.04051069,116360.0,116350.0,0.77359593]
[1758042142478,0.03753069,116360.0,116350.0,0.77575593]
[1758042142629,0.01402069,116360.0,116350.0,0.80287593]
[1758042143457,0.01200069,116360.0,116350.0,0.80287593]
[1758042144098,0.01200069,116360.0,116350.0,0.81136811]
[1758042146103,0.01200069,116360.0,116350.0,1.19426756]
[1758042146321,0.02663817,116370.0,116360.0,0.25203226]
[1758042146545,0.02671888,116370.0,116360.0,0.96104126]
[1758042146763,0.00090238,116370.0,116360.0,0.63757371]
[1758042147006,0.00090238,116370.0,116360.0,0.99042126]
[1758042147453,0.0261,116390.0,116380.0,0.25200272]
[1758042147689,0.0261,116390.0,116380.0,0.64620417]
[1758042147948,0.0261,116390.0,116380.0,0.37628417]
[1758042148402,0.0261,116390.0,116380.0,1.04628417]
[1758042148609,0.0261,116390.0,116380.0,1.12628417]
[1758042150463,0.0261,116390.0,116380.0,0.85628417]
[1758042150621,0.0261,116390.0,116380.0,1.19143402]
[1758042150825,0.0261,116390.0,116380.0,0.92055402]
[1758042151010,0.02812,116390.0,116380.0,0.89343402]
[1758042151219,0.02812,116390.0,116380.0,0.89353402]
[1758042151220,0.05163,116390.0,116380.0,0.89353402]
[1758042151454,0.05163,116390.0,116380.0,0.86338212]
[1758042152244,0.0261,116390.0,116380.0,0.89050212]
[1758042152480,0.0261,116390.0,116380.0,0.86645212]
[1758042152689,0.0261,116390.0,116380.0,0.89050212]
[1758042152858,0.0261,116390.0,116380.0,0.92065402]
[1758042153068,0.0261,116390.0,116380.0,1.27340157]
[1758042153950,0.00944756,116400.0,116390.0,0.25198795]
[1758042154177,0.00944756,116400.0,116390.0,0.96544695]
[1758042154396,0.00944756,116400.0,116390.0,0.99055695]
[1758042154620,0.00944756,116400.0,116390.0,1.39065695]
[1758042154792,0.00944756,116400.0,116390.0,1.0379094]
[1758042155176,0.00944756,116400.0,116390.0,1.39065695]
[1758042156456,0.00944756,116400.0,116390.0,1.89065695]
[1758042157044,0.00944756,116400.0,116390.0,1.5379094]
[1758042157395,0.00944756,116400.0,116390.0,1.89065695]
[1758042157603,0.00944756,116400.0,116390.0,1.5379094]
[1758042157811,0.00944756,116400.0,116390.0,1.89065695]
[1758042158464,1e-08,116400.0,116390.0,1.89065695]
[1758042159322,1e-08,116400.0,116390.0,1.71071695]
[1758042159738,1e-08,116400.0,116390.0,1.98211695]
[1758042160150,1e-08,116400.0,116390.0,1.71071695]
[1758042160401,1e-08,116400.0,116390.0,1.98207695]
[1758042161051,0.09183817,116410.0,116390.0,1.98207695]
[1758042161236,0.09197895,116410.0,116400.0,0.97585247]
[1758042161499,0.09197895,116410.0,116400.0,0.95867034]
[1758042161719,0.09197895,116410.0,116400.0,0.96069034]
[1758042161929,0.09197895,116410.0,116400.0,1.36069034]
[1758042162366,0.09197895,116410.0,116400.0,1.36079034]
[1758042162821,0.09197895,116410.0,116400.0,1.08943034]
[1758042163137,0.09197895,116410.0,116400.0,1.36071034]
[1758042164652,0.09197895,116410.0,116400.0,0.73668279]
[1758042164841,0.09197895,116410.0,116400.0,1.00796279]
[1758042165134,0.09197895,116410.0,116400.0,1.36091034]
[1758042165784,0.09197895,116410.0,116400.0,1.17277749]
[1758042166105,0.09197895,116410.0,116400.0,1.94429749]
[1758042167125,0.09197895,116410.0,116400.0,1.53835469]
[1758042167297,0.09197895,116410.0,116400.0,1.67277749]
[1758042167687,0.09393895,116410.0,116400.0,1.51201469]
[1758042167884,0.09197895,116410.0,116400.0,1.91795749]
[1758042168098,0.09197895,116410.0,116400.0,2.35024029]
[1758042168808,0.09197895,116410.0,116400.0,2.69024029]
[1758042169029,0.35412,116440.0,116430.0,0.05858885]
[1758042169243,0.35458917,116440.0,116430.0,0.70651867]
[1758042169465,0.77850541,116440.0,116430.0,0.70853867]
[1758042169682,0.10096261,116440.0,116430.0,1.10853867]
[1758042169888,0.50690541,116440.0,116430.0,1.10853867]
[1758042170318,0.50690541,116440.0,116430.0,1.13162867]
[1758042170535,0.10096261,116440.0,116430.0,1.13162867]
[1758042170748,0.09900261,116440.0,116430.0,1.13487867]
[1758042170891,0.48893197,116440.0,116430.0,1.13487867]
[1758042171105,0.50494345,116440.0,116430.0,1.13487867]
[1758042171314,0.01648065,116440.0,116430.0,1.16503057]
[1758042171513,0.08252,116490.0,116450.0,0.00858737]
[1758042171711,0.12776,116480.0,116470.0,0.17170467]
[1758042171915,0.32566368,116480.0,116470.0,0.32191712]
[1758042172281,0.32566368,116480.0,116470.0,0.08650145]
[1758042172509,0.49736697,116480.0,116470.0,0.08650145]
[1758042172711,0.05362368,116480.0,116470.0,0.30821948]
[1758042172911,0.55321097,116480.0,116470.0,0.30821948]
[1758042173475,1.07947426,116480.0,116470.0,0.30821948]
[1758042173681,1.07947426,116480.0,116470.0,0.63650145]
[1758042173886,1.07953664,116480.0,116470.0,0.63650145]
[1758042174307,1.57914631,116480.0,116470.0,0.58650145]
[1758042174489,1.66564776,116480.0,116470.0,0.58650145]
[1758042174817,2.00564776,116480.0,116470.0,0.5]
[1758042175033,1.00634842,116480.0,116470.0,0.5]
[1758042175253,2.00564776,116480.0,116470.0,0.5]
[1758042175479,2.7309253,116480.0,116470.0,0.5]
[1758042175919,2.4589253,116480.0,116470.0,0.5]
[1758042176128,2.7310853,116480.0,116470.0,0.5]
[1758042176755,2.7311653,116480.0,116470.0,0.5]
[1758042176974,2.4589253,116480.0,116470.0,0.5]
[1758042177191,2.7311253,116480.0,116470.0,0.5]
[1758042178690,2.64470385,116480.0,116470.0,0.5]
[1758042179359,2.37242385,116480.0,116470.0,0.5]
[1758042179568,2.64474385,116480.0,116470.0,0.5]
[1758042179797,2.64470385,116480.0,116470.0,0.5]
[1758042180240,2.5798072,116480.0,116470.0,0.5]
[1758042180472,2.93874865,116480.0,116470.0,0.083524]
[1758042180704,2.66630865,116480.0,116470.0,0.5]
[1758042180956,2.4671353,116480.0,116470.0,0.5]
[1758042181187,2.93870865,116480.0,116470.0,0.5]
[1758042181408,2.66626865,116480.0,116470.0,0.5]
[1758042181628,2.93886865,116480.0,116470.0,0.5]
[1758042181859,2.66626865,116480.0,116470.0,0.5]
[1758042182086,2.93882865,116480.0,116470.0,0.5]
[1758042182321,2.73076044,116480.0,116470.0,0.5]
[1758042182529,0.0085859,116470.0,116440.0,0.06930116]
[1758042182750,0.60488175,116450.0,116440.0,0.06930116]
[1758042182977,0.98494175,116450.0,116440.0,0.06930116]
[1758042183236,1.01074624,116450.0,116440.0,0.06930116]
[1758042183663,0.84078162,116450.0,116440.0,0.06930116]
[1758042183933,0.84092229,116450.0,116440.0,0.06930116]
[1758042184134,1.11344229,116450.0,116440.0,0.0001]
[1758042184769,0.84092229,116450.0,116440.0,0.0001]
[1758042184975,1.57432419,116450.0,116440.0,0.0001]
[1758042185304,1.57436419,116450.0,116440.0,0.0001]
[1758042185439,1.30180419,116450.0,116440.0,0.0001]
[1758042185657,1.57432419,116450.0,116440.0,0.0001]
[1758042186272,1.29574419,116450.0,116440.0,0.0001]
[1758042186487,1.38224564,116450.0,116440.0,0.0001]
[1758042186688,1.65488425,116450.0,116440.0,0.0001]
[1758042186937,2.08602847,116450.0,116440.0,1e-08]
[1758042187150,0.60249228,116440.0,116430.0,0.0001]
[1758042187359,2.7887246,116440.0,116430.0,0.0001]
[1758042187565,2.8180246,116440.0,116430.0,0.0001]
[1758042187770,2.8138146,116440.0,116430.0,0.0001]
[1758042187978,2.8139546,116440.0,116430.0,0.0001]
[1758042188424,2.60589301,116440.0,116430.0,0.0001]
[1758042188603,2.87849301,116440.0,116430.0,0.0001]
[1758042188776,2.60589301,116440.0,116430.0,0.0001]
[1758042188998,2.87849301,116440.0,116430.0,0.0001]
[1758042189372,0.79481468,116440.0,116430.0,0.0001]
[1758042189562,1.10503094,116440.0,116430.0,0.0001]
[1758042190222,1.37827094,116440.0,116430.0,0.0001]
[1758042190646,0.51177703,116430.0,116420.0,0.0001]
[1758042190867,1.04547524,116430.0,116420.0,0.0001]
[1758042191098,1.34801524,116430.0,116420.0,0.0001]
[1758042191309,1.07487524,116430.0,116420.0,0.0001]
[1758042191704,1.50601946,116430.0,116420.0,0.0001]
[1758042192135,2.31692281,116430.0,116420.0,0.0001]
[1758042192981,0.63267368,116420.0,116410.0,0.0001]
[1758042193202,2.902186,116420.0,116410.0,0.0001]
[1758042193411,2.931486,116420.0,116410.0,1e-08]
[1758042193622,2.931586,116420.0,116410.0,1e-08]
[1758042194039,2.658226,116420.0,116410.0,1e-08]
[1758042194248,2.93502829,116420.0,116410.0,1e-08]
[1758042194716,2.93506829,116420.0,116410.0,1e-08]
[1758042195567,2.66166829,116420.0,116410.0,1e-08]
[1758042195800,2.93506829,116420.0,116410.0,1e-08]
[1758042197988,0.17180654,116410.0,116400.0,0.0001]
[1758042198137,2.54632076,116410.0,116400.0,0.0001]
[1758042198352,2.57562076,116410.0,116400.0,0.0001]
[1758042198731,2.57906336,116410.0,116400.0,0.0001]
[1758042198943,2.57916336,116410.0,116400.0,0.0001]
[1758042199170,2.57916336,116410.0,116400.0,0.00056917]
[1758042199815,2.57916336,116410.0,116400.0,0.00046917]
[1758042200036,0.6327032,116400.0,116390.0,0.0001]
[1758042200256,1.52610286,116400.0,116390.0,0.00024078]
[1758042200467,1.55531032,116400.0,116390.0,0.00024078]
[1758042200689,1.46880887,116400.0,116390.0,0.00014078]
[1758042200894,1.19560887,116400.0,116390.0,0.00014078]
[1758042201123,1.19570887,116400.0,116390.0,0.00014078]
[1758042201956,1.46890887,116400.0,116390.0,0.00014078]
[1758042202204,1.19570887,116400.0,116390.0,0.00014078]
[1758042202642,1.46890887,116400.0,116390.0,0.00014078]
[1758042203375,1.19570887,116400.0,116390.0,0.00014078]
[1758042203587,1.19571624,116400.0,116390.0,0.00014078]
[1758042204024,1.46883624,116400.0,116390.0,0.00014078]
[1758042204311,1.19571624,116400.0,116390.0,0.00014078]
[1758042204799,1.46887624,116400.0,116390.0,0.00014078]
[1758042205489,1.19571624,116400.0,116390.0,0.00014078]
[1758042205718,1.46879624,116400.0,116390.0,0.00014078]
[1758042205966,1.46955933,116400.0,116390.0,0.00014078]
[1758042206204,1.65037603,116400.0,116390.0,0.00014078]
[1758042206895,1.73687748,116400.0,116390.0,0.00014078]
[1758042208288,1.7626996,116400.0,116390.0,0.00014078]
[1758042208558,1.76273591,116400.0,116390.0,0.00014078]
[1758042209527,1.48965591,116400.0,116390.0,0.00014078]
[1758042209961,1.40315446,116400.0,116390.0,0.00014078]
[1758042210181,1.67603446,116400.0,116390.0,0.00014078]
[1758042210638,1.67599446,116400.0,116390.0,0.00014078]
[1758042210861,1.40315446,116400.0,116390.0,0.00014078]
[1758042211331,1.67595446,116400.0,116390.0,0.00014078]
[1758042211797,1.40315446,116400.0,116390.0,0.00014078]
[1758042212240,1.67595446,116400.0,116390.0,0.00014078]
[1758042212465,2.00623446,116400.0,116390.0,0.00014078]
[1758042214625,1.33609256,116400.0,116390.0,0.00014078]
[1758042214845,1.24748111,116400.0,116390.0,0.00219078]
[1758042215097,1.24946111,116400.0,116390.0,0.00014078]
[1758042215304,1.24748111,116400.0,116390.0,0.00535078]
[1758042215515,1.58748111,116400.0,116390.0,0.02922078]
[1758042215722,1.94284111,116400.0,116390.0,0.02922078]
[1758042216355,1.85211111,116400.0,116390.0,0.02922078]
[1758042216742,1.93861256,116400.0,116390.0,0.02922078]
[1758042217210,1.94059256,116400.0,116390.0,0.02606078]
[1758042217470,1.94059256,116400.0,116390.0,0.00219078]
[1758042217708,1.58523256,116400.0,116390.0,0.00219078]
[1758042217920,1.61098256,116400.0,116390.0,0.00014078]
[1758042218138,1.96622256,116400.0,116390.0,0.00014078]
[1758042218578,1.96634256,116400.0,116390.0,0.00014078]
[1758042218791,1.61098256,116400.0,116390.0,0.00014078]
[1758042219023,1.96630256,116400.0,116390.0,0.00014078]
[1758042219444,1.61098256,116400.0,116390.0,0.00014078]
[1758042219869,1.96630256,116400.0,116390.0,0.00014078]
[1758042220520,1.96626256,116400.0,116390.0,0.00014078]
[1758042220732,1.61105618,116400.0,116390.0,0.00014078]
[1758042220944,1.96629618,116400.0,116390.0,0.00014078]
[1758042221381,1.61105618,116400.0,116390.0,0.00014078]
[1758042221605,1.96629618,116400.0,116390.0,0.00014078]
[1758042221790,1.61105618,116400.0,116390.0,0.00014078]
[1758042221994,1.96625618,116400.0,116390.0,0.00014078]
[1758042222628,1.61105618,116400.0,116390.0,0.00014078]
[1758042222845,1.60858618,116400.0,116390.0,0.00014078]
[1758042223478,1.96370618,116400.0,116390.0,0.00014078]
[1758042223725,1.60858618,116400.0,116390.0,0.00014078]
[1758042223946,1.96370618,116400.0,116390.0,0.00014078]
[1758042224162,1.60858618,116400.0,116390.0,0.00014078]
[1758042224378,2.05661618,116400.0,116390.0,0.00014078]
[1758042226730,2.05662217,116400.0,116390.0,0.00014078]
[1758042228718,2.05650237,116400.0,116390.0,0.00014078]
[1758042229685,1.78410237,116400.0,116390.0,0.00014078]
[1758042229895,2.04015666,116400.0,116390.0,0.00014078]
[1758042230106,2.84889074,116400.0,116390.0,0.00014078]
[1758042230543,2.59504526,116400.0,116390.0,0.00014078]
[1758042230753,2.86740526,116400.0,116390.0,0.00014078]
[1758042231189,2.86485526,116400.0,116390.0,0.00014078]
[1758042231416,2.86485526,116400.0,116390.0,5.00014078]
[1758042231870,2.77835416,116400.0,116390.0,5.00014078]
[1758042232100,2.75309416,116400.0,116390.0,5.02922078]
[1758042232331,1.11886358,116400.0,116390.0,5.02922078]
[1758042232551,1.47370358,116400.0,116390.0,5.02922078]
[1758042232805,2.42281416,116400.0,116390.0,5.02922078]
[1758042233039,2.50931561,116400.0,116390.0,5.02922078]
[1758042233662,2.50935561,116400.0,116390.0,5.02922078]
[1758042233881,2.23703561,116400.0,116390.0,5.02922078]
[1758042234123,2.50939561,116400.0,116390.0,5.02922078]
[1758042234529,2.06005416,116400.0,116390.0,5.02922078]
[1758042234742,1.97749416,116400.0,116390.0,5.02922078]
[1758042234949,2.33233416,116400.0,116390.0,5.02922078]
[1758042235350,2.33229416,116400.0,116390.0,5.02922078]
[1758042235850,2.35855416,116400.0,116390.0,5.00014078]
[1758042236090,2.17281561,116400.0,116390.0,5.00014078]
[1758042236307,2.44505561,116400.0,116390.0,5.00014078]
[1758042236495,2.53553561,116400.0,116390.0,5.00014078]
[1758042236745,2.53800561,116400.0,116390.0,5.00014078]
[1758042237170,2.26576561,116400.0,116390.0,5.00014078]
[1758042237387,2.53800561,116400.0,116390.0,5.00014078]
[1758042238037,2.53801056,116400.0,116390.0,5.00014078]
[1758042238504,2.26577332,116400.0,116390.0,5.00014078]
[1758042238731,2.29592522,116400.0,116390.0,5.00014078]
[1758042238948,2.56804522,116400.0,116390.0,5.00014078]
[1758042239386,2.56800522,116400.0,116390.0,5.00014078]
[1758042239848,2.29592522,116400.0,116390.0,5.00014078]
[1758042240292,2.56804522,116400.0,116390.0,5.00014078]
[1758042240595,2.29592522,116400.0,116390.0,5.00014078]
[1758042240820,2.56809225,116400.0,116390.0,5.00014078]
[1758042241281,2.3824337,116400.0,116390.0,5.00014078]
[1758042241517,2.6545537,116400.0,116390.0,5.00014078]
[1758042241755,2.6546737,116400.0,116390.0,5.00014078]
[1758042242209,2.3824337,116400.0,116390.0,5.00014078]
[1758042242433,2.7126737,116400.0,116390.0,5.00014078]
[1758042242650,2.9849137,116400.0,116390.0,5.00014078]
[1758042243845,2.7126737,116400.0,116390.0,5.00014078]
[1758042244045,2.9849137,116400.0,116390.0,5.00014078]
[1758042244669,2.7126737,116400.0,116390.0,5.00014078]
[1758042244870,2.9848737,116400.0,116390.0,5.00014078]
[1758042245091,2.7126737,116400.0,116390.0,5.00014078]
[1758042245303,2.9848337,116400.0,116390.0,5.00014078]
[1758042246097,2.7126737,116400.0,116390.0,5.00014078]
[1758042246309,2.9848337,116400.0,116390.0,5.00014078]
[1758042246507,2.7126737,116400.0,116390.0,5.00014078]
[1758042246727,2.9847537,116400.0,116390.0,5.00014078]
[1758042246923,2.7126737,116400.0,116390.0,5.00014078]
[1758042247128,2.9847137,116400.0,116390.0,5.00014078]
[1758042248679,2.9847537,116400.0,116390.0,5.00014078]
[1758042248871,2.9850337,116400.0,116390.0,5.00014078]
[1758042249237,2.6301137,116400.0,116390.0,5.00014078]
[1758042249420,2.9850337,116400.0,116390.0,5.00014078]
[1758042249629,2.7126737,116400.0,116390.0,5.00014078]